bitfinex/quotes_ETHUSD_20250923
["timestamp","ask_amount","ask_price","bid_price","bid_amount"]
[1758625671190,35.19762927,4191.6,4191.5,0.004]
[1758625671504,32.68162927,4191.6,4191.5,0.004]
[1758625673611,32.24762927,4191.6,4191.5,0.004]
[1758625673796,32.68162927,4191.6,4191.5,0.004]
[1758625674515,32.01612927,4191.6,4191.5,0.004]
[1758625674721,32.24562927,4191.6,4191.5,0.004]
[1758625675222,20.96125048,4191.6,4191.5,0.004]
[1758625675625,21.39525048,4191.6,4191.5,0.004]
[1758625676227,19.4260333,4191.6,4191.5,0.004]
[1758625676831,19.6555333,4191.6,4191.5,0.004]
[1758625677003,20.0895333,4191.6,4191.5,0.004]
[1758625678203,20.0887333,4191.6,4191.5,0.004]
[1758625678389,20.8807333,4191.6,4191.5,0.004]
[1758625678590,21.39192396,4191.6,4191.5,0.004]
[1758625679885,20.95792396,4191.6,4191.5,0.004]
[1758625680088,20.4477333,4191.6,4191.5,0.004]
[1758625680588,21.3929586,4191.6,4191.5,0.004]
[1758625681042,22.8269586,4191.6,4191.5,0.004]
[1758625681536,7.61195151,4191.2,4191.1,0.004]
[1758625681873,2.38630643,4190.6,4189.8,0.6645]
[1758625681990,16.02789971,4190.2,4189.0,0.1192]
[1758625682305,2.226,4189.3,4188.2,0.2346]
[1758625682505,2.226,4189.3,4185.7,0.055]
[1758625682506,9.84937879,4188.3,4186.1,0.1392]
[1758625682802,1.434,4188.9,4187.1,0.2546]
[1758625682803,17.70439039,4188.2,4187.1,0.2546]
[1758625683001,26.53712703,4188.2,4187.1,0.2546]
[1758625683200,26.02664621,4188.2,4187.4,0.2346]
[1758625683428,26.02664621,4188.2,4187.1,0.02]
[1758625683429,4.61377459,4188.0,4187.1,0.02]
[1758625683629,4.61388862,4187.8,4187.7,1e-08]
[1758625683832,21.73061844,4187.8,4187.7,1e-08]
[1758625684002,24.84051476,4187.8,4187.7,1e-08]
[1758625684197,27.35651476,4187.8,4187.7,1e-08]
[1758625684409,10.96513597,4187.8,4187.7,1e-08]
[1758625684610,24.46167716,4187.8,4187.7,1e-08]
[1758625685049,5.60949837,4187.8,4187.7,1e-08]
[1758625685241,13.70888862,4187.8,4187.7,1e-08]
[1758625685690,3.0,4187.8,4187.7,0.23460001]
[1758625685888,0.01974128,4187.8,4187.7,0.66450001]
[1758625686095,1.397,4188.0,4187.7,0.66450001]
[1758625686405,0.01974128,4188.1,4187.7,1e-08]
[1758625686406,1.41674128,4187.9,4187.7,1e-08]
[1758625686723,4.048,4187.8,4187.7,1e-08]
[1758625686890,10.09317879,4188.9,4187.7,1e-08]
[1758625686891,2.38755507,4188.4,4187.7,1e-08]
[1758625687091,6.115,4188.3,4187.7,1e-08]
[1758625687293,6.115,4188.3,4187.7,0.66450001]
[1758625687611,3.0,4188.1,4187.8,0.6645]
[1758625687925,3.0,4189.2,4187.9,0.6645]
[1758625688091,2.38744151,4188.6,4188.0,0.6645]
[1758625688293,3.0,4188.4,4188.1,0.6645]
[1758625688603,2.38726157,4188.9,4187.7,1e-08]
[1758625688604,3.0,4188.2,4187.7,2.38794269]
[1758625688804,4.052,4188.1,4187.7,2.38794269]
[1758625689003,4.052,4188.1,4187.8,3.07625807]
[1758625689211,0.01974128,4188.6,4187.9,3.05232279]
[1758625689440,0.01974128,4188.6,4188.0,2.41165233]
[1758625689641,3.0,4188.4,4188.0,0.25847774]
[1758625689955,3.0,4188.4,4188.0,0.68837774]
[1758625690171,3.0,4188.2,4188.0,0.02387774]
[1758625690352,3.0,4188.9,4188.1,0.6645]
[1758625690521,3.0,4188.7,4188.2,0.6645]
[1758625690841,3.0,4188.5,4188.3,0.6645]
[1758625691030,3.0,4188.3,4187.7,0.02387946]
[1758625691354,4.054,4188.2,4187.7,2.41177714]
[1758625691514,4.054,4188.1,4187.8,2.62248117]
[1758625691721,4.054,4188.1,4187.9,0.68837831]
[1758625691922,4.054,4188.1,4188.0,0.6645]
[1758625692570,4.053,4188.1,4188.0,0.6645]
[1758625692771,4.053,4188.1,4188.0,3.05227459]
[1758625692978,0.1192,4188.3,4188.0,0.6645]
[1758625693267,1.176,4188.5,4188.1,3.07609166]
[1758625693433,3.628,4188.5,4188.2,0.6645]
[1758625693639,3.628,4188.5,4188.3,15.18837603]
[1758625693835,3.628,4188.5,4188.4,3.05204655]
[1758625694434,3.628,4188.5,4188.4,17.57592201]
[1758625694654,3.628,4188.5,4188.4,17.55204655]
[1758625695022,4.052,4188.7,4188.5,2.38746982]
[1758625695224,4.052,4188.7,4188.4,14.5]
[1758625695424,4.052,4188.7,4188.5,0.6645]
[1758625695632,4.052,4188.7,4188.4,14.5]
[1758625695633,4.052,4188.7,4188.6,0.6645]
[1758625696353,3.0,4188.6,4187.7,1e-08]
[1758625696552,2.38770893,4188.2,4187.7,1e-08]
[1758625696852,4.07174128,4188.1,4187.7,1e-08]
[1758625697227,6.45946379,4188.1,4187.7,1e-08]
[1758625697426,6.43972251,4188.1,4187.7,1e-08]
[1758625697636,0.01974128,4188.0,4187.7,1e-08]
[1758625698251,2.38788862,4187.8,4187.7,1e-08]
[1758625698429,4.051,4187.8,4187.7,1e-08]
[1758625700462,4.07074128,4187.8,4187.7,1e-08]
[1758625700635,6.4586299,4187.8,4187.7,1e-08]
[1758625700839,6.43888862,4187.8,4187.7,1e-08]
[1758625701252,7.12678862,4187.8,4187.7,1e-08]
[1758625701565,11.23006099,4187.8,4187.7,1e-08]
[1758625701855,12.02206099,4187.8,4187.7,1e-08]
[1758625703148,12.02126099,4187.8,4187.7,1e-08]
[1758625704729,6.49116099,4187.8,4187.7,1e-08]
[1758625704952,12.83676099,4187.8,4187.7,1e-08]
[1758625705148,13.29406099,4187.8,4187.7,1e-08]
[1758625706141,12.83676099,4187.8,4187.7,1e-08]
[1758625706464,2.60849079,4187.8,4187.7,1e-08]
[1758625706650,2.60849079,4187.8,4187.7,0.70180001]
[1758625706849,8.72449079,4187.8,4187.7,15.20180001]
[1758625707051,4.27060217,4187.8,4187.7,15.20180001]
[1758625707365,6.65849079,4187.8,4187.7,15.20180001]
[1758625707663,6.65849079,4187.8,4187.7,14.50000001]
[1758625709563,0.22060217,4187.8,4187.7,14.50000001]
[1758625709779,4.26860217,4187.8,4187.7,15.20180001]
[1758625709966,6.67623207,4187.8,4187.7,15.20180001]
[1758625710281,6.65649079,4187.8,4187.7,15.20180001]
[1758625711178,6.65649079,4187.8,4187.7,14.96990001]
[1758625711381,6.65649079,4187.8,4187.7,15.20180001]
[1758625711798,4.26860217,4187.8,4187.7,15.20180001]
[1758625712034,0.24034345,4187.8,4187.7,15.20180001]
[1758625712184,0.22060217,4187.8,4187.7,15.20180001]
[1758625712390,4.26660217,4187.8,4187.7,15.20180001]
[1758625713624,4.26660217,4187.8,4187.7,15.18640001]
[1758625715414,4.26784473,4187.8,4187.7,0.68640001]
[1758625715737,4.26684473,4187.8,4187.7,0.68640001]
[1758625715924,4.26684473,4187.8,4187.7,15.18640001]
[1758625717702,4.26684473,4187.8,4187.7,17.57434566]
[1758625717922,4.26684473,4187.8,4187.7,15.18640001]
[1758625718292,4.26684473,4187.8,4187.7,17.57434566]
[1758625718628,0.001,4188.1,4188.0,2.38777459]
[1758625718838,0.22285565,4188.1,4187.8,0.6864]
[1758625719036,0.001,4188.1,4187.8,2.38787826]
[1758625719325,0.001,4188.1,4188.0,0.1192]
[1758625719550,0.001,4188.1,4188.0,2.53085233]
[1758625720058,0.001,4188.1,4188.0,3.21725233]
[1758625720217,0.001,4188.1,4188.0,17.71725233]
[1758625720416,0.001,4188.1,4188.0,17.69337459]
[1758625721871,0.001,4188.1,4188.0,18.48537459]
[1758625722159,0.001,4188.1,4188.0,21.48537459]
[1758625728297,0.0002,4188.1,4188.0,21.48537459]
[1758625730880,0.0002,4188.1,4188.0,20.00697459]
[1758625731075,0.0002,4188.1,4188.0,24.04197459]
[1758625732479,0.7211,4188.1,4188.0,21.04197459]
[1758625732737,0.7211,4188.1,4188.0,14.6192]
[1758625733075,0.7211,4188.1,4188.0,17.00697459]
[1758625733291,0.0002,4188.1,4188.0,17.00697459]
[1758625733495,0.0002,4188.1,4188.0,21.04197459]
[1758625733742,0.0002,4188.1,4188.0,17.00697459]
[1758625733906,0.2462,4188.1,4188.0,17.00697459]
[1758625734105,0.7211,4188.1,4188.0,17.00697459]
[1758625734324,0.7211,4188.1,4188.0,21.04397459]
[1758625734570,0.0002,4188.1,4188.0,21.04397459]
[1758625735523,0.0002,4188.1,4188.0,18.6562]
[1758625735797,0.0002,4188.1,4188.0,21.04397459]
[1758625737527,0.2462,4188.1,4188.0,14.6192]
[1758625737825,0.7211,4188.1,4188.0,18.6552]
[1758625738615,0.7211,4188.1,4188.0,21.04297459]
[1758625739147,0.2462,4188.1,4188.0,21.04297459]
[1758625739650,0.0002,4188.1,4188.0,21.04297459]
[1758625741452,0.0002,4188.1,4188.0,18.6552]
[1758625741616,0.6917,4188.1,4188.0,21.04297459]
[1758625742033,0.228,4188.1,4188.0,21.04297459]
[1758625742441,0.6917,4188.1,4188.0,18.6552]
[1758625742823,0.6917,4188.1,4188.0,18.6512]
[1758625743023,0.6917,4188.1,4188.0,21.03897459]
[1758625743452,0.0002,4188.1,4188.0,14.6192]
[1758625743616,0.6917,4188.1,4188.0,21.03897459]
[1758625744970,0.228,4188.1,4188.0,18.6502]
[1758625745321,0.6917,4188.1,4188.0,14.6192]
[1758625745642,0.0002,4188.1,4188.0,14.6192]
[1758625745850,0.0002,4188.1,4188.0,21.27027459]
[1758625746159,0.0002,4188.1,4188.0,21.03797459]
[1758625747237,0.0002,4188.1,4188.0,21.70277459]
[1758625747679,0.0002,4188.1,4188.0,25.49477459]
[1758625748934,0.0002,4188.1,4188.0,25.37557459]
[1758625749365,0.001,4188.6,4188.5,2.38748955]
[1758625749598,0.001,4188.6,4188.5,7.23536444]
[1758625749866,0.001,4188.6,4188.5,7.87628955]
[1758625750178,0.001,4188.6,4188.5,22.37628955]
[1758625751147,0.001,4188.6,4188.5,22.74448955]
[1758625751465,0.001,4188.6,4188.5,27.44528955]
[1758625753165,0.0002,4188.6,4188.5,27.44528955]
[1758625755589,0.0002,4188.6,4188.5,25.38028955]
[1758625755891,0.0002,4188.6,4188.5,27.44528955]
[1758625758166,0.02,4189.9,4189.8,2.38674877]
[1758625758470,0.02,4189.9,4189.8,6.44561625]
[1758625758669,0.2625,4189.9,4189.8,6.42174877]
[1758625758875,0.2625,4189.9,4189.8,6.54094877]
[1758625759205,0.2625,4189.9,4189.8,21.04094877]
[1758625759206,0.02,4189.9,4189.8,21.04094877]
[1758625760065,0.7035,4189.9,4189.8,21.04094877]
[1758625760678,0.2625,4189.9,4189.8,21.04094877]
[1758625761877,0.02,4189.9,4189.8,21.04094877]
[1758625762897,0.02,4189.9,4189.8,21.71924877]
[1758625763199,0.021,4189.9,4189.8,21.71924877]
[1758625763405,0.021,4189.9,4189.8,21.28634877]
[1758625763716,0.021,4189.9,4189.8,21.04094877]
[1758625764807,0.021,4189.9,4189.8,22.51124877]
[1758625764977,0.021,4189.9,4189.8,21.83294877]
[1758625765183,0.021,4189.9,4189.8,22.51124877]
[1758625768790,0.001,4190.4,4190.3,2.38646397]
[1758625768996,0.001,4190.4,4190.3,6.4393286]
[1758625769230,0.001,4190.4,4190.3,6.53466397]
[1758625769530,0.6845,4190.4,4190.3,21.03366397]
[1758625771226,0.6845,4190.4,4190.3,21.03266397]
[1758625773500,0.001,4190.4,4190.3,21.03266397]
[1758625776731,0.001,4190.4,4190.3,21.27586397]
[1758625776931,0.001,4190.4,4190.3,21.03266397]
[1758625778211,0.0002,4190.4,4190.3,21.03266397]
[1758625779661,0.2471,4190.4,4190.3,21.02766397]
[1758625779935,0.0002,4190.4,4190.3,21.02766397]
[1758625780138,0.0002,4190.4,4190.3,17.00566397]
[1758625780303,0.2471,4190.4,4190.3,21.02666397]
[1758625780504,0.7154,4190.4,4190.3,21.02666397]
[1758625781004,0.0002,4190.4,4190.3,21.02666397]
[1758625781406,0.0002,4190.4,4190.3,21.46426397]
[1758625781607,0.0002,4190.4,4190.3,21.70746397]
[1758625781933,0.0002,4190.4,4190.3,25.49946397]
[1758625785045,0.0002,4190.4,4190.3,25.06186397]
[1758625785649,0.0002,4190.4,4190.3,25.49946397]
[1758625789260,0.0002,4190.4,4190.3,20.79766397]
[1758625789470,0.7154,4190.4,4190.3,24.02166397]
[1758625789686,0.7154,4190.4,4190.3,17.00566397]
[1758625789972,0.7154,4190.4,4190.3,21.02266397]
[1758625790872,0.2471,4190.4,4190.3,21.02266397]
[1758625791446,0.7154,4190.4,4190.3,21.02266397]
[1758625792281,0.2471,4190.4,4190.3,21.02266397]
[1758625792481,0.0002,4190.4,4190.3,21.02266397]
[1758625792676,0.0002,4190.4,4190.3,21.26586397]
[1758625792988,0.0002,4190.4,4190.3,21.02266397]
[1758625795048,0.0002,4190.4,4190.3,24.70346397]
[1758625795249,0.0002,4190.4,4190.3,24.02266397]
[1758625796561,0.0002,4190.4,4190.3,25.37626397]
[1758625796865,0.0002,4190.4,4190.3,24.81466397]
[1758625797461,0.0002,4190.4,4190.3,26.87666397]
[1758625799088,0.2471,4190.4,4190.3,26.87666397]
[1758625799254,0.0002,4190.4,4190.3,26.87666397]
[1758625799854,0.7154,4190.4,4190.3,26.87666397]
[1758625800490,0.2471,4190.4,4190.3,26.87666397]
[1758625800654,0.0002,4190.4,4190.3,26.87666397]
[1758625801064,0.0002,4190.4,4190.3,24.81266397]
[1758625801379,0.7125,4190.4,4190.3,21.01866397]
[1758625801689,0.7125,4190.4,4190.3,17.00566397]
[1758625802233,0.7125,4190.4,4190.3,21.01866397]
[1758625803264,0.7117,4190.4,4190.3,17.00566397]
[1758625803470,0.84523167,4190.4,4190.3,14.6192]
[1758625804273,0.84515301,4190.4,4190.3,17.00566397]
[1758625804502,0.37975301,4190.4,4190.3,17.00566397]
[1758625804658,0.13345301,4190.4,4190.3,21.01866397]
[1758625804997,0.4654,4190.7,4190.6,2.38629313]
[1758625805172,0.13346704,4190.7,4190.6,6.40029313]
[1758625805360,0.13346704,4190.7,4190.6,6.51949313]
[1758625805587,0.2577,4190.9,4190.8,2.38617924]
[1758625805898,0.2577,4190.9,4190.8,6.40117924]
[1758625806107,0.2577,4190.9,4190.8,20.90117924]
[1758625806403,0.7231,4190.9,4190.8,20.90117924]
[1758625808801,0.2577,4190.9,4190.8,20.90117924]
[1758625809111,0.021,4190.9,4190.8,20.90117924]
[1758625810513,0.2577,4190.9,4190.8,20.90117924]
[1758625812933,0.021,4190.9,4190.8,20.90117924]
[1758625815603,0.2577,4190.9,4190.8,20.90117924]
[1758625815802,0.021,4190.9,4190.8,20.90117924]
[1758625816242,0.021,4190.9,4190.8,21.15037924]
[1758625816898,0.021,4190.9,4190.8,20.90117924]
[1758625817695,0.021,4190.9,4190.8,21.13197924]
[1758625817939,0.021,4190.9,4190.8,21.59447924]
[1758625818296,0.021,4190.9,4190.8,22.38647924]
[1758625819827,1e-08,4190.9,4190.8,22.38647924]
[1758625820028,1e-08,4190.9,4190.8,25.38647924]
[1758625820531,1e-08,4190.9,4190.8,20.67817924]
[1758625820827,1e-08,4190.9,4190.8,24.68717924]
[1758625822937,1e-08,4190.9,4190.8,25.38047924]
[1758625824352,1e-08,4190.9,4190.8,21.37147924]
[1758625824549,1e-08,4190.9,4190.8,27.44247924]
[1758625825748,1e-08,4190.9,4190.8,26.74917924]
[1758625827751,1e-08,4190.9,4190.8,24.68417924]
[1758625827924,1e-08,4190.9,4190.8,26.74817924]
[1758625828251,0.24350001,4191.4,4191.3,2.38589459]
[1758625828461,0.24350001,4191.4,4191.3,6.39089459]
[1758625828671,0.24350001,4191.4,4191.3,6.51009459]
[1758625828970,0.70980001,4191.4,4191.3,21.00909459]
[1758625829657,0.70980001,4191.4,4191.3,17.00509459]
[1758625829858,0.70980001,4191.4,4191.3,14.6192]
[1758625830033,0.70980001,4191.4,4191.3,18.6242]
[1758625830233,0.70980001,4191.4,4191.3,14.5]
[1758625830234,0.84300516,4191.4,4191.3,14.5]
[1758625830774,0.84300516,4191.4,4190.9,0.1192]
[1758625830950,0.48971525,4191.3,4190.9,0.1192]
[1758625831153,0.13320515,4191.2,4190.9,2.50531921]
[1758625831350,0.84280515,4191.1,4190.9,2.50531921]
[1758625831579,0.13320515,4191.0,4190.9,2.50531921]
[1758625831743,0.84850515,4191.0,4190.9,2.50531921]
[1758625832296,0.84850515,4191.0,4190.9,17.00531921]
[1758625832471,0.7153,4191.0,4190.9,17.00531921]
[1758625834874,0.7153,4191.0,4190.9,21.01031921]
[1758625838146,0.00020001,4191.4,4191.1,2.38600844]
[1758625838346,0.13325231,4191.3,4191.2,6.38995151]
[1758625838661,0.00020001,4191.4,4191.3,2.50509459]
[1758625838987,0.00020001,4191.4,4191.3,17.00509459]
[1758625839284,0.24510001,4191.4,4191.3,17.00509459]
[1758625839447,0.71550001,4191.4,4191.3,17.00509459]
[1758625839649,0.00020001,4191.4,4191.3,17.00509459]
[1758625840368,0.24510001,4191.4,4191.3,21.00909459]
[1758625841588,0.71550001,4191.4,4191.3,17.00509459]
[1758625841783,0.71550001,4191.4,4191.3,21.00909459]
[1758625842651,0.00020001,4191.4,4191.3,17.00509459]
[1758625842855,0.84878683,4191.4,4191.3,14.6192]
[1758625843087,0.84878683,4191.4,4191.3,14.5]
[1758625843469,1.19579894,4191.4,4191.3,14.5]
[1758625844204,0.84878683,4191.4,4191.3,14.5]
[1758625847807,3.23462449,4191.4,4191.3,14.5]
[1758625848186,0.84878683,4191.4,4191.3,14.5]
[1758625849196,3.23462449,4191.4,4191.3,14.5]
[1758625849393,7.23562449,4191.4,4191.3,14.5]
[1758625849706,9.24871283,4191.4,4191.3,14.5]
[1758625850581,6.86287517,4191.4,4191.3,14.5]
[1758625850995,9.24871283,4191.4,4191.3,14.5]
[1758625851198,9.2486494,4191.4,4191.3,14.5]
[1758625851392,5.11442601,4191.4,4191.3,14.5]
[1758625851593,9.24963673,4191.4,4191.3,14.5]
[1758625852122,9.11642601,4191.4,4191.3,14.5]
[1758625852419,2.13248835,4191.4,4191.3,14.5]
[1758625852615,4.12040001,4191.4,4191.3,14.5]
[1758625853106,4.25282354,4191.4,4191.3,14.5]
[1758625853479,4.25382354,4191.4,4191.3,14.5]
[1758625854001,0.25182354,4191.4,4191.3,14.5]
[1758625854596,0.25182354,4191.4,4191.3,16.88589459]
[1758625854792,0.13322353,4191.4,4191.3,17.59079459]
[1758625855635,0.13322353,4191.4,4191.3,17.13059459]
[1758625855790,0.13322353,4191.4,4191.3,17.59079459]
[1758625855991,0.001,4191.5,4191.4,2.38583766]
[1758625856193,0.13428889,4191.5,4191.4,7.09273766]
[1758625857537,0.001,4191.5,4191.4,7.09273766]
[1758625857893,0.13432788,4191.5,4191.4,7.09273766]
[1758625858404,0.13432788,4191.5,4191.4,21.59273766]
[1758625858830,0.13434753,4191.5,4191.4,21.59273766]
[1758625863047,0.13434753,4191.5,4191.4,14.5]
[1758625863245,0.83994753,4191.5,4191.4,14.5]
[1758625863540,3.22572827,4191.5,4191.4,14.5]
[1758625864542,2.50503766,4191.4,4191.3,0.004]
[1758625864711,12.66416825,4191.4,4191.3,0.004]
[1758625864910,13.35002697,4191.4,4191.3,0.004]
[1758625865956,2.75428835,4191.4,4191.3,0.004]
[1758625866244,0.97788881,4191.4,4191.3,0.004]
[1758625866448,4.97888881,4191.4,4191.3,0.004]
[1758625866614,4.95914753,4191.4,4191.3,0.004]
[1758625866814,3.34393569,4191.4,4191.3,0.004]
[1758625867114,7.36467697,4191.4,4191.3,0.004]
[1758625867313,7.34493569,4191.4,4191.3,0.004]
[1758625867540,15.55483665,4191.4,4191.3,0.004]
[1758625867722,16.59204968,4191.4,4191.3,0.004]
[1758625870936,16.59202571,4191.4,4191.3,0.004]
[1758625872354,16.81416513,4191.4,4191.3,0.004]
[1758625872539,16.81416424,4191.4,4191.3,0.004]
[1758625873010,16.81416502,4191.4,4191.3,0.004]
[1758625874644,19.68089096,4191.4,4191.3,0.004]
[1758625874956,19.81414229,4191.4,4191.3,0.004]
[1758625876174,26.87414229,4191.4,4191.3,0.004]
[1758625876468,26.8740107,4191.4,4191.3,0.004]
[1758625876770,27.38550901,4191.4,4191.3,0.004]
[1758625878030,27.38470901,4191.4,4191.3,0.004]
[1758625879892,27.38455289,4191.4,4191.3,0.004]
[1758625884074,27.38446623,4191.4,4191.3,0.004]
[1758625884366,36.38636719,4191.4,4191.3,0.004]
[1758625884671,28.17646623,4191.4,4191.3,0.004]
[1758625888238,23.38346623,4191.4,4191.3,0.004]
[1758625888432,28.62446623,4191.4,4191.3,0.004]
[1758625888847,28.86041191,4191.4,4191.3,0.004]
[1758625889280,28.62441191,4191.4,4191.3,0.004]
[1758625889446,28.1129136,4191.4,4191.3,0.004]
[1758625890000,28.3489136,4191.4,4191.3,0.004]
[1758625891259,28.85979559,4191.4,4191.3,0.004]
[1758625891488,28.62379559,4191.4,4191.3,0.004]
[1758625891800,28.62479559,4191.4,4191.3,0.004]
[1758625891955,10.3116816,4191.4,4191.3,0.004]
[1758625892144,7.41496195,4191.4,4191.3,0.6846]
[1758625892345,11.41579963,4191.4,4191.3,0.6846]
[1758625892545,14.41579963,4191.4,4191.3,0.6846]
[1758625892746,25.01153825,4191.4,4191.3,0.6846]
[1758625893050,22.62570059,4191.4,4191.3,0.6846]
[1758625893559,25.01153825,4191.4,4191.3,0.6846]
[1758625893743,22.62570059,4191.4,4191.3,0.6846]
[1758625893951,25.01161132,4191.4,4191.3,0.6846]
[1758625895476,25.01161132,4191.4,4191.3,15.1846]
[1758625896266,25.01169647,4191.4,4191.3,15.1846]
[1758625898402,25.01169647,4191.4,4191.3,0.6846]
[1758625898764,25.01169647,4191.4,4191.3,15.1846]
[1758625899172,25.01269647,4191.4,4191.3,15.1846]
[1758625899989,25.0127455,4191.4,4191.3,15.1846]
[1758625900195,25.01274344,4191.4,4191.3,15.1846]
[1758625900398,24.79069285,4191.4,4191.3,15.1846]
[1758625900569,25.01275185,4191.4,4191.3,15.1846]
[1758625901982,25.01275185,4191.4,4191.3,14.504]
[1758625903126,28.66795451,4191.4,4191.3,0.004]
[1758625903474,28.15628945,4191.4,4191.3,0.004]
[1758625903891,10.41521323,4191.4,4191.3,0.2306]
[1758625904093,14.41623508,4191.4,4191.3,0.6846]
[1758625904391,14.41623508,4191.4,4191.3,15.1846]
[1758625904597,14.41623924,4191.4,4191.3,15.1846]
[1758625904836,11.41623924,4191.4,4191.3,15.1846]
[1758625905038,11.41623924,4191.4,4191.3,17.68969459]
[1758625905039,4.13495423,4191.4,4191.3,17.68969459]
[1758625906288,0.13395423,4191.4,4191.3,17.68969459]
[1758625906529,4.13495423,4191.4,4191.3,15.1846]
[1758625907020,4.13495423,4191.4,4191.3,17.57049459]
[1758625907220,4.13495423,4191.4,4191.3,15.1846]
[1758625907400,4.13495423,4191.4,4191.3,0.6846]
[1758625907899,4.13495423,4191.4,4191.3,17.57049459]
[1758625908122,4.13495423,4191.4,4191.3,15.1846]
[1758625908418,4.13495423,4191.4,4191.3,17.57049459]
[1758625908923,4.13495423,4191.4,4191.3,15.1846]
[1758625909285,0.13395423,4191.4,4191.3,15.1846]
[1758625910189,0.001,4191.4,4191.3,15.1846]
[1758625910390,0.13414183,4191.4,4191.3,15.1846]
[1758625912537,0.13414183,4191.4,4191.3,17.57049459]
[1758625913191,0.001,4191.4,4191.3,17.68969459]
[1758625914425,0.1341357,4191.4,4191.3,15.3038]
[1758625914590,0.1341357,4191.4,4191.3,14.8498]
[1758625914926,0.001,4191.4,4191.3,14.8498]
[1758625915088,0.001,4191.4,4191.3,15.3038]
[1758625915527,0.13416559,4191.4,4191.3,15.3038]
[1758625915729,0.13416559,4191.4,4191.3,17.68969459]
[1758625915925,0.13416559,4191.4,4191.3,15.3038]
[1758625917209,0.13418605,4191.4,4191.3,15.3038]
[1758625918033,0.13421283,4191.4,4191.3,15.3038]
[1758625918945,0.13421283,4191.4,4191.3,14.6232]
[1758625919145,0.13421283,4191.4,4191.3,14.504]
[1758625920325,0.83571283,4191.4,4191.3,14.504]
[1758625920948,0.13421283,4191.4,4191.3,14.504]
[1758625921355,0.83571283,4191.4,4191.3,14.504]
[1758625921761,0.36681283,4191.4,4191.3,14.504]
[1758625921966,0.13421283,4191.4,4191.3,14.504]
[1758625922123,0.13421283,4191.4,4191.3,17.56529459]
[1758625922844,0.13421283,4191.4,4191.3,0.6794]
[1758625923037,0.13421283,4191.4,4191.3,3.06529459]
[1758625923238,0.13421283,4191.4,4191.3,15.1794]
[1758625925168,0.13421283,4191.4,4191.3,17.56529459]
[1758625925963,0.13421283,4191.4,4191.3,15.1794]
[1758625926335,0.13421283,4191.4,4191.3,17.56529459]
[1758625927166,0.13436806,4191.4,4191.3,14.504]
[1758625927362,0.13436806,4191.4,4191.3,17.56529459]
[1758625927678,0.13436806,4191.4,4191.3,15.1794]
[1758625927891,0.13356806,4191.4,4191.3,17.56529459]
[1758625928744,0.13356806,4191.4,4191.3,14.504]
[1758625929070,0.36936806,4191.4,4191.3,14.504]
[1758625929644,4.81466806,4191.4,4191.3,14.504]
[1758625929969,10.90632286,4191.4,4191.3,14.504]
[1758625930175,10.90631878,4191.4,4191.3,14.504]
[1758625930735,10.90631878,4191.4,4191.3,0.004]
[1758625930943,7.83838112,4191.4,4191.3,0.004]
[1758625931135,7.59064019,4191.4,4191.3,0.004]
[1758625931358,10.42277785,4191.4,4191.3,0.004]
[1758625933481,17.99410184,4191.4,4191.3,0.004]
[1758625934042,19.42510652,4191.4,4191.3,0.004]
[1758625934271,19.42584632,4191.4,4191.3,0.004]
[1758625934468,21.86868392,4191.4,4191.3,0.004]
[1758625935362,21.22893944,4191.4,4191.3,0.004]
[1758625935770,21.22893944,4191.4,4190.8,0.004]
[1758625935771,17.46469588,4190.9,4190.8,0.004]
[1758625935967,23.60346006,4190.9,4190.8,0.004]
[1758625936192,20.67309766,4190.9,4190.8,0.004]
[1758625936374,26.73609766,4190.9,4190.8,0.004]
[1758625936550,25.30109766,4190.9,4190.8,0.004]
[1758625936749,25.7897366,4190.9,4190.8,0.004]
[1758625938384,25.78883745,4190.9,4190.8,0.004]
[1758625939291,26.58083745,4190.9,4190.8,0.004]
[1758625939453,28.01583745,4190.9,4190.8,1e-08]
[1758625940070,26.58183745,4190.9,4190.8,1e-08]
[1758625940472,26.95595765,4190.9,4190.8,1e-08]
[1758625940671,28.39095765,4190.9,4190.8,1e-08]
[1758625940999,18.09958408,4190.9,4190.8,1e-08]
[1758625941152,24.16358408,4190.9,4190.8,1e-08]
[1758625942269,23.65146009,4190.9,4190.8,1e-08]
[1758625942591,24.16184453,4190.9,4190.8,1e-08]
[1758625943082,23.65146009,4190.9,4190.8,1e-08]
[1758625944687,21.79553989,4190.9,4190.8,1e-08]
[1758625944871,22.02913989,4190.9,4190.8,1e-08]
[1758625945250,21.79553989,4190.9,4190.8,1e-08]
[1758625945454,22.48533989,4190.9,4190.8,1e-08]
[1758625946693,22.4850355,4190.9,4190.8,1e-08]
[1758625948472,16.4210355,4190.9,4190.8,1e-08]
[1758625948678,22.0288355,4190.9,4190.8,1e-08]
[1758625948865,21.54019656,4190.9,4190.8,1e-08]
[1758625949193,21.99639656,4190.9,4190.8,1e-08]
[1758625950067,12.18339656,4190.9,4190.8,1e-08]
[1758625950267,14.24739656,4190.9,4190.8,1e-08]
[1758625950492,14.02587365,4190.9,4190.8,0.72450001]
[1758625950704,14.02587365,4190.9,4190.8,0.24980001]
[1758625950990,14.71567365,4190.9,4190.8,1e-08]
[1758625951194,22.72482466,4190.9,4190.8,1e-08]
[1758625951356,8.18345109,4190.9,4190.8,1e-08]
[1758625951697,11.80461349,4190.9,4190.8,1e-08]
[1758625953010,12.05151349,4190.9,4190.8,1e-08]
[1758625953916,11.8039129,4190.9,4190.8,1e-08]
[1758625955874,12.05177991,4190.9,4190.8,1e-08]
[1758625956187,22.34255348,4190.9,4190.8,1e-08]
[1758625956390,24.78539108,4190.9,4190.8,1e-08]
[1758625957288,25.29685602,4190.9,4190.8,1e-08]
[1758625958881,25.2974932,4190.9,4190.8,1e-08]
[1758625960120,15.44591963,4190.9,4190.8,1e-08]
[1758625960538,16.87730606,4190.9,4190.8,1e-08]
[1758625960836,17.95642142,4190.9,4190.4,0.004]
[1758625960997,15.23792364,4190.5,4190.4,0.004]
[1758625961197,20.10478336,4190.5,4190.4,0.004]